bitfinex/quotes_ETHUSD_20250711
["timestamp","ask_amount","ask_price","bid_price","bid_amount"]
[1752267538176,2.29977,2970.5,2970.4,8.062]
[1752267538685,1.82747,2970.5,2970.4,23.31]
[1752267538982,3.52977,2970.5,2970.4,18.062]
[1752267539391,3.52977,2970.5,2970.4,22.89567187]
[1752267539557,3.52977,2970.5,2970.1,0.002]
[1752267539882,1.5263,2970.3,2970.1,0.002]
[1752267540271,3.2286,2970.3,2970.1,0.002]
[1752267540472,2.7563,2970.3,2970.1,0.002]
[1752267540676,2.7563,2970.3,2970.2,8.063]
[1752267541589,2.46,2970.3,2970.2,48.5284]
[1752267541788,2.46,2970.3,2970.2,34.5744]
[1752267542006,2.46,2970.3,2970.2,25.509]
[1752267542183,2.829,2970.3,2970.2,23.325]
[1752267542618,2.46,2970.3,2970.2,53.7904]
[1752267542815,2.46,2970.3,2970.2,54.3404]
[1752267542993,3.69,2970.3,2970.2,24.3404]
[1752267543513,3.69,2970.3,2970.2,52.6094]
[1752267544518,4.92,2970.3,2970.2,52.6094]
[1752267546008,6.15,2970.3,2970.2,52.6094]
[1752267547134,6.15,2970.3,2970.2,54.63020572]
[1752267547313,7.38,2970.3,2970.2,54.63020572]
[1752267547632,7.38,2970.3,2970.2,46.56720572]
[1752267547829,7.33539064,2970.3,2970.2,46.56720572]
[1752267548018,0.46816255,2970.3,2970.2,46.92456408]
[1752267548217,1e-08,2970.3,2970.2,48.18321849]
[1752267548396,1.23,2970.5,2970.4,32.0665]
[1752267548596,1.23,2970.5,2970.4,47.70790572]
[1752267548810,1.23,2970.5,2970.4,48.17330572]
[1752267549209,1.23,2970.5,2970.4,48.34130572]
[1752267550000,2.46,2970.5,2970.4,48.34130572]
[1752267550637,2.46,2970.5,2970.4,60.59830572]
[1752267551404,3.69,2970.5,2970.4,60.59830572]
[1752267552845,4.92,2970.5,2970.4,60.59830572]
[1752267554007,4.92,2970.5,2970.4,56.40530572]
[1752267554208,6.15,2970.5,2970.4,56.40530572]
[1752267554417,5.61750017,2970.5,2970.4,56.0219]
[1752267554623,5.61750017,2970.5,2970.4,48.69866408]
[1752267554823,5.61750017,2970.5,2970.4,47.9579]
[1752267555443,6.31500034,2970.5,2970.4,47.9579]
[1752267556853,7.54500034,2970.5,2970.4,42.6999]
[1752267557059,7.54500034,2970.5,2970.4,47.9499]
[1752267557223,7.01250051,2970.5,2970.4,47.9499]
[1752267558057,7.71000068,2970.5,2970.4,47.9499]
[1752267558760,7.71000068,2970.5,2970.4,47.9479]
[1752267558925,7.71000068,2970.5,2970.4,42.6999]
[1752267559354,7.71000068,2970.5,2970.4,47.9479]
[1752267559560,8.94000068,2970.5,2970.4,47.9479]
[1752267559983,8.94000068,2970.5,2970.4,42.6999]
[1752267560144,8.94000068,2970.5,2970.4,47.9469]
[1752267560533,8.94000068,2970.5,2970.4,52.1389]
[1752267560737,8.94000068,2970.5,2970.4,60.2019]
[1752267561037,10.17000068,2970.5,2970.4,60.2019]
[1752267561638,10.17100068,2970.5,2970.4,60.2019]
[1752267562237,11.40100068,2970.5,2970.4,60.2019]
[1752267563354,11.40100068,2970.5,2970.4,56.39330572]
[1752267563746,12.09850616,2970.5,2970.4,56.39330572]
[1752267563929,12.09850616,2970.5,2970.4,48.33030572]
[1752267564128,11.56601164,2970.5,2970.4,48.33030572]
[1752267564349,11.56601164,2970.5,2970.4,13.08330572]
[1752267564548,11.56601164,2970.5,2970.4,42.6999]
[1752267564761,11.56601164,2970.5,2970.4,47.9389]
[1752267564959,11.56601164,2970.5,2970.4,42.6999]
[1752267565148,12.79601164,2970.5,2970.4,42.1475]
[1752267565353,12.79601164,2970.5,2970.4,35.24]
[1752267565548,12.79601164,2970.5,2970.4,45.24]
[1752267566491,14.02601164,2970.5,2970.4,45.24]
[1752267566965,14.02601164,2970.5,2970.4,45.703]
[1752267567171,14.02601164,2970.5,2970.4,46.252]
[1752267567686,14.02601164,2970.5,2970.4,45.789]
[1752267567883,15.25601164,2970.5,2970.4,45.789]
[1752267568089,15.25601164,2970.5,2970.4,40.55]
[1752267568291,15.25601164,2970.5,2970.4,46.251]
[1752267568653,15.25601164,2970.5,2970.4,46.63440572]
[1752267569088,14.72351712,2970.5,2970.4,43.48476408]
[1752267569306,15.95351712,2970.5,2970.4,40.718]
[1752267569790,15.95351712,2970.5,2970.4,45.956]
[1752267570286,15.95351712,2970.5,2970.4,46.419]
[1752267570658,17.18351712,2970.5,2970.4,58.674]
[1752267571398,17.17424109,2970.5,2970.4,58.674]
[1752267571770,17.17424109,2970.5,2970.4,58.211]
[1752267571972,18.40424109,2970.5,2970.4,58.21]
[1752267572172,18.40424109,2970.5,2970.4,58.673]
[1752267573382,19.63424109,2970.5,2970.4,58.673]
[1752267574615,19.63424109,2970.5,2970.4,54.478]
[1752267574908,20.86424109,2970.5,2970.4,41.181]
[1752267575112,20.86424109,2970.5,2970.4,46.413]
[1752267575318,20.86424109,2970.5,2970.4,41.181]
[1752267575471,20.86424109,2970.5,2970.4,46.413]
[1752267576113,20.86424109,2970.5,2970.4,46.412]
[1752267576417,22.09424109,2970.5,2970.4,45.949]
[1752267578017,23.32424109,2970.5,2970.4,46.412]
[1752267579122,23.32424109,2970.5,2970.4,45.949]
[1752267579320,24.55424109,2970.5,2970.4,45.949]
[1752267580014,24.55424109,2970.5,2970.4,40.718]
[1752267580220,28.9672652,2970.5,2970.4,40.0]
[1752267580393,29.1352652,2970.5,2970.4,38.501]
[1752267580587,30.3652652,2970.5,2970.4,26.467]
[1752267580774,30.3652652,2970.5,2970.4,25.083]
[1752267581109,30.3652652,2970.5,2970.4,12.256]
[1752267581339,30.3652652,2970.5,2970.4,17.481]
[1752267581834,30.3652652,2970.5,2970.4,12.256]
[1752267582046,31.5952652,2970.5,2970.4,27.481]
[1752267582855,31.5952652,2970.5,2970.4,22.256]
[1752267583002,31.5952652,2970.5,2970.4,27.48]
[1752267583515,32.8252652,2970.5,2970.4,27.48]
[1752267583936,32.8252652,2970.5,2970.4,22.256]
[1752267584135,32.8252652,2970.5,2970.4,27.478]
[1752267584327,32.8252652,2970.5,2970.4,27.48]
[1752267584839,34.0552652,2970.5,2970.4,27.48]
[1752267586334,35.2852652,2970.5,2970.4,22.258]
[1752267586539,35.2852652,2970.5,2970.4,27.48]
[1752267586961,34.8519652,2970.5,2970.4,50.651]
[1752267587123,32.39654109,2970.5,2970.4,51.03440572]
[1752267587328,30.87224109,2970.5,2970.4,51.03440572]
[1752267587530,30.70424109,2970.5,2970.4,51.83926408]
[1752267587725,22.16397393,2970.5,2970.4,51.83926408]
[1752267587932,22.16397393,2970.5,2970.4,51.55976408]
[1752267588265,22.16397393,2970.5,2970.4,52.00726408]
[1752267588463,22.16397393,2970.5,2970.4,51.20240572]
[1752267589064,22.16397393,2970.5,2970.4,45.047]
[1752267589263,27.62937132,2970.5,2970.4,22.258]
[1752267589560,27.62937132,2970.5,2970.4,17.478]
[1752267590076,27.62937132,2970.5,2970.4,27.478]
[1752267590266,27.62937132,2970.5,2970.4,57.478]
[1752267590486,25.41297393,2970.5,2970.4,42.759]
[1752267590760,26.64297393,2970.5,2970.4,30.954]
[1752267591343,26.17967393,2970.5,2970.4,30.954]
[1752267592145,25.85397393,2970.5,2970.4,30.954]
[1752267592344,26.31727393,2970.5,2970.4,31.33740572]
[1752267592577,28.94900132,2970.5,2970.4,31.4]
[1752267593551,30.17900132,2970.5,2970.4,31.4]
[1752267593751,27.54727393,2970.5,2970.4,31.4]
[1752267594572,27.54727393,2970.5,2970.4,26.182]
[1752267594758,27.54727393,2970.5,2970.4,31.397]
[1752267594958,28.77727393,2970.5,2970.4,31.397]
[1752267595488,28.31397393,2970.5,2970.4,31.397]
[1752267595899,28.48197393,2970.5,2970.4,31.78040572]
[1752267596413,29.71197393,2970.5,2970.4,31.78040572]
[1752267596562,29.71197393,2970.5,2970.4,31.397]
[1752267598176,30.94197393,2970.5,2970.4,31.397]
[1752267598378,30.94197393,2970.5,2970.4,26.182]
[1752267598676,31.40527393,2970.5,2970.4,31.395]
[1752267598997,30.94197393,2970.5,2970.4,21.395]
[1752267599165,30.94197393,2970.5,2970.4,31.395]
[1752267599166,31.40527393,2970.5,2970.4,31.395]
[1752267600098,32.17197393,2970.5,2970.4,31.395]
[1752267601428,33.23397393,2970.5,2970.4,31.8425]
[1752267601633,33.23397393,2970.5,2970.4,32.22590572]
[1752267602329,33.23397393,2970.5,2970.4,31.77840572]
[1752267602536,33.23397393,2970.5,2970.4,13.926]
[1752267602894,34.46397393,2970.5,2970.4,13.926]
[1752267604017,34.63197393,2970.5,2970.4,13.926]
[1752267604223,35.86197393,2970.5,2970.4,13.926]
[1752267605523,37.09197393,2970.5,2970.4,13.926]
[1752267605835,38.61097393,2970.5,2970.4,13.926]
[1752267606023,38.61197393,2970.5,2970.4,13.926]
[1752267606226,38.61197393,2970.5,2970.4,40.552]
[1752267606422,38.61197393,2970.5,2970.4,37.226]
[1752267606950,39.84197393,2970.5,2970.4,37.226]
[1752267607236,38.32297393,2970.5,2970.4,37.226]
[1752267607805,38.15497393,2970.5,2970.4,37.6735]
[1752267608414,39.38497393,2970.5,2970.4,37.226]
[1752267609225,39.38497393,2970.5,2970.4,37.6735]
[1752267609614,40.61497393,2970.5,2970.4,37.6735]
[1752267609831,40.61497393,2970.5,2970.4,40.20049742]
[1752267610909,41.84497393,2970.5,2970.4,39.39375836]
[1752267611108,41.84497393,2970.5,2970.4,39.4839]
[1752267612146,43.07497393,2970.5,2970.4,39.84125836]
[1752267612353,43.07497393,2970.5,2970.4,40.20049742]
[1752267613717,44.30497393,2970.5,2970.4,40.20049742]
[1752267615256,45.53497393,2970.5,2970.4,40.20049742]
[1752267616472,45.37471098,2970.5,2970.4,40.20049742]
[1752267616648,45.64313328,2970.5,2970.4,40.20049742]
[1752267616844,45.00208148,2970.5,2970.4,40.20049742]
[1752267617049,44.36102968,2970.5,2970.4,40.20049742]
[1752267617261,44.20076673,2970.5,2970.4,40.20049742]
[1752267617462,43.71997788,2970.5,2970.4,40.20049742]
[1752267617662,43.55971493,2970.5,2970.4,40.20049742]
[1752267617880,42.45288178,2970.5,2970.4,41.84537093]
[1752267618076,29.32755757,2970.5,2970.4,41.84537093]
[1752267618276,29.1596168,2970.5,2970.4,41.84537093]
[1752267618444,28.30533114,2970.5,2970.4,41.84537093]
[1752267618776,28.13739037,2970.5,2970.4,41.84537093]
[1752267619072,27.9694496,2970.5,2970.4,41.84537093]
[1752267619236,29.1994496,2970.5,2970.4,41.84537093]
[1752267619437,28.71098293,2970.5,2970.4,41.84537093]
[1752267619760,25.72830611,2970.5,2970.4,41.84537093]
[1752267620082,21.73263201,2970.5,2970.4,41.84537093]
[1752267620242,21.0839599,2970.5,2970.4,40.20049742]
[1752267620443,21.0839599,2970.5,2970.4,41.48601906]
[1752267620666,21.50502484,2970.5,2970.4,41.84525812]
[1752267620864,21.02423599,2970.5,2970.4,41.84525812]
[1752267621037,20.37556388,2970.5,2970.4,41.84525812]
[1752267621238,20.05503798,2970.5,2970.4,41.84525812]
[1752267621441,17.48974521,2970.5,2970.4,41.84525812]
[1752267621639,3.69753971,2970.5,2970.4,41.84525812]
[1752267621933,2.75265645,2970.5,2970.4,41.84525812]
[1752267622151,3.81477319,2970.5,2970.4,41.84525812]
[1752267622363,3.49424729,2970.5,2970.4,41.84525812]
[1752267622565,3.00583813,2970.5,2970.4,41.84525812]
[1752267622875,2.36478633,2970.5,2970.4,41.84525812]
[1752267623089,1.87637717,2970.5,2970.4,40.20049742]
[1752267623240,1.87637717,2970.5,2970.4,38.9339]
[1752267623442,2.30506242,2970.5,2970.4,38.9339]
[1752267623746,0.70243292,2970.5,2970.4,38.9339]
[1752267624055,0.06138112,2970.5,2970.4,38.9339]
[1752267624250,6.15,2970.9,2970.7,0.55]
[1752267624468,6.15,2970.9,2970.8,30.58366096]
[1752267624775,6.15,2970.9,2970.8,30.718]
[1752267624941,7.38,2970.9,2970.8,40.718]
[1752267625644,9.3882,2970.9,2970.8,30.718]
[1752267625955,9.3882,2970.9,2970.8,40.718]
[1752267626351,10.6182,2970.9,2970.8,40.168]
[1752267627242,10.6182,2970.9,2970.8,40.718]
[1752267627443,7.0073705,2970.9,2970.8,40.718]
[1752267627711,6.9552669,2970.9,2970.8,41.1459]
[1752267627987,6.9552669,2970.9,2970.8,42.6739]
[1752267627988,5.0321115,2970.9,2970.8,42.6739]
[1752267628344,5.0321115,2970.9,2970.8,40.718]
[1752267628954,6.2621115,2970.9,2970.8,40.718]
[1752267630573,7.33184855,2970.9,2970.8,40.718]
[1752267630758,6.8510597,2970.9,2970.8,10.718]
[1752267631082,6.5305338,2970.9,2970.8,40.718]
[1752267631281,6.2100079,2970.9,2970.8,40.718]
[1752267631580,0.001,2971.7,2970.8,44.67625507]
[1752267631804,0.001,2971.7,2971.5,0.55]
[1752267631945,0.001,2971.7,2971.6,30.718]
[1752267632148,0.001,2971.7,2971.6,40.718]
[1752267632548,0.001,2971.7,2971.6,42.246]
[1752267633298,1.231,2971.7,2971.6,42.246]
[1752267633856,1.231,2971.7,2971.6,42.49220226]
[1752267634088,1.06306994,2971.7,2971.6,43.24859968]
[1752267634594,0.89513988,2971.7,2971.6,43.24859968]
[1752267634752,1.95720982,2971.7,2971.6,43.24859968]
[1752267635248,1.78927976,2971.7,2971.6,43.24859968]
[1752267635576,1.78927976,2971.7,2971.6,42.49220226]
[1752267636299,1.6214275,2971.7,2971.6,42.49220226]
[1752267636524,2.8514275,2971.7,2971.6,42.49220226]
[1752267638005,3.91357524,2971.7,2971.6,43.24859968]
[1752267638162,3.91357524,2971.7,2971.6,43.58809781]
[1752267638362,3.74572298,2971.7,2971.6,43.58809781]
[1752267638697,3.57787072,2971.7,2971.6,43.58809781]
[1752267639064,3.69,2972.5,2972.1,0.55]
[1752267639264,3.69,2972.5,2972.1,30.55]
[1752267639502,3.69,2972.5,2972.1,40.718]
[1752267639698,1.6132,2972.4,2972.1,40.718]
[1752267639878,1.6814,2972.2,2972.1,40.168]
[1752267640082,1.6814,2972.2,2972.1,40.0]
[1752267640809,2.9114,2972.2,2972.1,40.0]
[1752267641767,4.99386,2972.2,2972.0,30.0]
[1752267641967,1.6132,2972.0,2971.8,10.0]
[1752267642197,0.4514,2971.9,2971.7,30.0]
[1752267642409,1.6132,2971.8,2971.7,30.0]
[1752267642617,2.43906,2971.8,2971.6,0.24743424]
[1752267642814,1.98766,2971.8,2971.7,30.0]
[1752267643021,1.98766,2971.8,2971.4,30.0]
[1752267643312,1.98766,2971.8,2971.6,30.0]
[1752267643511,0.4514,2971.7,2971.4,30.0]
[1752267643715,0.4514,2971.7,2971.6,40.0]
[1752267643916,0.818306,2971.7,2971.6,40.0]
[1752267644420,0.818306,2971.7,2971.6,30.0]
[1752267644639,1.6132,2971.6,2971.4,30.0]
[1752267644798,1.6132,2971.4,2971.0,0.168]
[1752267645114,0.4514,2971.3,2971.2,40.55]
[1752267646015,1.6814,2971.3,2971.2,40.55]
[1752267646220,1.6814,2971.3,2971.2,40.80095931]
[1752267646540,3.2946,2971.3,2971.2,40.80095931]
[1752267646704,3.64086,2971.3,2971.2,30.25095931]
[1752267647013,3.64086,2971.3,2971.2,40.80095931]
[1752267647218,3.2946,2971.3,2971.2,40.80095931]
[1752267647514,4.5246,2971.3,2971.2,40.80095931]
[1752267648684,2.46,2971.3,2971.2,40.80095931]
[1752267648889,3.691,2971.3,2971.2,43.15015673]
[1752267649190,3.691,2971.3,2971.2,43.19035673]
[1752267649396,3.691,2971.3,2971.2,42.79279837]
[1752267649602,3.691,2971.3,2971.2,40.80095931]
[1752267650319,4.921,2971.3,2971.2,40.80095931]
[1752267650721,4.921,2971.3,2971.2,30.80095931]
[1752267650922,4.921,2971.3,2971.2,41.51755673]
[1752267651309,4.921,2971.3,2971.2,41.55775673]
[1752267651511,6.151,2971.3,2971.2,41.51755673]
[1752267653320,6.151,2971.3,2971.2,41.55775673]
[1752267653527,7.381,2971.3,2971.2,13.19035673]
[1752267653727,7.21307276,2971.3,2971.2,43.19035673]
[1752267654052,0.49469804,2971.3,2971.2,43.52985486]
[1752267654588,0.3267708,2971.3,2971.2,43.48965486]
[1752267654789,1.23,2971.7,2971.2,43.48965486]
[1752267654790,1.23,2971.7,2971.5,0.55]
[1752267655021,1.23,2971.7,2971.6,42.97304932]
[1752267655224,3.69,2972.2,2971.6,42.97304932]
[1752267655225,3.582126,2972.2,2971.9,0.55]
[1752267655411,3.582126,2972.2,2972.1,42.1826]
[1752267655729,3.582126,2972.2,2972.1,42.2228]
[1752267656326,4.812126,2972.2,2972.1,42.2228]
[1752267657710,6.042126,2972.2,2972.1,42.2228]
[1752267658302,6.042126,2972.2,2972.1,42.1826]
[1752267658743,6.042126,2972.2,2972.1,42.3506]
[1752267659334,7.272126,2972.2,2972.1,42.3506]
[1752267661106,8.502126,2972.2,2972.1,42.3506]
[1752267661302,6.03925233,2972.2,2972.1,42.3506]
[1752267661508,3.53425233,2972.2,2972.1,43.10739742]
[1752267661715,3.3664412,2972.2,2972.1,43.10739742]
[1752267662138,3.19863007,2972.2,2972.1,43.10739742]
[1752267662643,4.26081894,2972.2,2972.1,42.3908]
[1752267662862,1.16081894,2972.2,2972.1,42.3908]
[1752267663165,0.99300781,2972.2,2972.1,42.3908]
[1752267663460,0.82519668,2972.2,2972.1,42.3908]
[1752267663762,1.88738555,2972.2,2972.1,42.3908]
[1752267664059,1.88738555,2972.2,2972.1,43.10739742]
[1752267664239,1.71957442,2972.2,2972.1,43.10739742]
[1752267664551,1.55176329,2972.2,2972.1,43.10739742]
[1752267665049,1.38395216,2972.2,2972.1,13.10739742]
[1752267665364,2.44614103,2972.2,2972.1,42.75003906]
[1752267665771,2.2783299,2972.2,2972.1,42.75003906]
[1752267666160,2.11051877,2972.2,2972.1,42.75003906]
[1752267666661,3.17270764,2972.2,2972.1,42.75003906]
[1752267666864,3.17270764,2972.2,2972.1,42.69983906]
[1752267667051,3.00491565,2972.2,2972.1,42.3406]
[1752267667662,2.83712366,2972.2,2972.1,42.3406]
[1752267667829,4.06712366,2972.2,2972.1,42.3808]
[1752267668029,3.89933167,2972.2,2972.1,42.3808]
[1752267668567,3.73153968,2972.2,2972.1,42.3808]
[1752267668767,2.46,2973.0,2972.4,2.1935]
[1752267669078,0.55374701,2972.5,2972.4,42.26734284]
[1752267669265,1.61595502,2972.5,2972.4,42.2337]
[1752267669467,1.61595502,2972.5,2972.4,42.4017]
[1752267669698,1.44816303,2972.5,2972.4,42.4017]
[1752267669828,2.46,2973.0,2972.4,42.4017]
[1752267669829,2.076,2973.0,2972.9,10.55]
[1752267670031,2.076,2973.0,2972.9,40.55]
[1752267670353,1.23,2973.4,2972.9,43.99624631]
[1752267670529,2.46,2973.7,2973.6,40.55]
[1752267670736,2.46,2973.7,2973.6,40.718]
[1752267671231,2.46,2973.7,2973.6,40.971928]
[1752267671432,1.23,2974.2,2973.9,0.55]
[1752267671634,1.23,2974.2,2973.6,5.17633576]
[1752267671635,1.23,2974.2,2974.1,32.3615]
[1752267671946,2.29220801,2974.2,2974.1,32.3615]
[1752267672258,2.12446106,2974.2,2974.1,32.3615]
[1752267672454,2.57886106,2974.2,2974.1,30.718]
[1752267672668,2.12446106,2974.2,2974.1,30.718]
[1752267673201,2.12446106,2974.2,2974.1,31.51394129]
[1752267673354,3.35446106,2974.2,2974.1,31.51394129]
[1752267674890,3.18671411,2974.2,2974.1,41.51394129]
[1752267675060,3.18671411,2974.2,2974.1,43.15744129]
[1752267675261,4.24896716,2974.2,2974.1,43.19764129]
[1752267675699,4.08122021,2974.2,2974.1,43.19764129]
[1752267676099,3.91347326,2974.2,2974.1,43.19764129]
[1752267676301,3.91347326,2974.2,2974.1,43.15744129]
[1752267676508,4.97572631,2974.2,2974.1,43.15744129]
[1752267676808,4.80797936,2974.2,2974.1,43.15744129]
[1752267677209,4.64023241,2974.2,2974.1,43.15744129]
[1752267677513,8.86623241,2974.4,2974.3,0.55]
[1752267677664,8.86623241,2974.4,2974.3,40.55]
[1752267677864,6.74047119,2974.4,2974.3,40.718]
[1752267678174,1.12405636,2974.9,2974.7,10.55]
[1752267678380,1.12405636,2974.9,2974.8,40.718]
[1752267678906,1.23,2975.4,2975.1,0.55]
[1752267679135,1.23,2975.4,2975.3,0.55]
[1752267679277,1.23,2975.4,2975.3,40.55]
[1752267679278,2.8534,2975.4,2975.3,40.55]
[1752267679489,6.26409936,2975.4,2975.3,40.55]
[1752267679792,6.71909936,2975.4,2975.3,40.55]
[1752267680393,3.3084,2975.4,2975.3,40.55]
[1752267680719,4.5384,2975.4,2975.3,40.55]
[1752267680921,4.5384,2975.4,2975.3,40.80523138]
[1752267682084,5.7684,2975.4,2975.3,40.80523138]
[1752267682820,5.7684,2975.4,2975.3,10.80523138]
[1752267683121,5.7684,2975.4,2975.3,40.80523138]
[1752267683622,6.9984,2975.4,2975.3,40.80523138]
[1752267684329,8.55158201,2975.4,2975.3,40.25523138]
[1752267684623,8.55158201,2975.4,2975.3,30.25523138]
[1752267684916,9.78158201,2975.4,2975.3,40.25523138]
[1752267686408,11.01158201,2975.4,2975.3,40.25523138]
[1752267687333,11.01158201,2975.4,2975.3,21.36523138]
[1752267687639,11.01158201,2975.4,2974.6,30.0]
[1752267687640,1.75,2975.3,2974.6,30.0]
[1752267687803,0.168,2975.0,2974.7,10.0]
[1752267688014,1.75,2975.0,2974.9,40.0]
[1752267688620,2.205,2975.0,2974.9,40.0]
[1752267688929,2.037,2975.0,2974.9,40.55]
[1752267689234,2.037,2975.0,2974.9,40.7953694]
[1752267689432,3.267,2975.0,2974.9,40.7953694]
[1752267690934,4.497,2975.0,2974.9,40.9633694]
[1752267691537,2.46,2975.0,2974.9,41.35547174]
[1752267692337,3.69,2975.0,2974.9,41.35547174]
[1752267693133,4.145,2975.0,2974.9,40.9633694]
[1752267694403,5.375,2975.0,2974.9,40.9633694]
[1752267695945,6.605,2975.0,2974.9,40.9633694]
[1752267697342,7.835,2975.0,2974.9,40.9633694]
[1752267698955,9.065,2975.0,2974.9,40.9633694]
[1752267700555,9.065,2975.0,2974.9,0.9633694]
[1752267700868,10.295,2975.0,2974.9,40.9633694]
[1752267701733,12.8835,2975.0,2974.9,19.201]
[1752267702119,14.1135,2975.0,2974.9,17.573]
[1752267702340,14.1135,2975.0,2974.9,29.623]
[1752267702812,14.1135,2975.0,2974.9,14.978]
[1752267703429,15.3435,2975.0,2974.9,14.978]
[1752267704338,15.3435,2975.0,2974.9,14.774]
[1752267704759,1.5054,2974.9,2974.2,7.36]
[1752267704963,1.53435,2974.9,2974.2,7.36]
[1752267705130,1.5054,2974.7,2974.2,7.36]
[1752267705331,1.5054,2974.5,2972.4,10.0]
[1752267705568,1.5054,2974.5,2973.0,30.0]
[1752267705866,3.534,2974.7,2973.1,30.0]
[1752267705867,1.5054,2974.3,2973.1,30.0]
[1752267706172,1.5054,2974.1,2973.0,30.0]
[1752267706464,1.5054,2973.9,2973.1,30.0]
[1752267706690,0.455,2973.8,2973.1,0.55]
[1752267706863,1.5054,2973.7,2973.5,10.0]
[1752267707038,1.5054,2973.7,2973.6,40.0]
[1752267707699,1.9779,2973.7,2973.6,40.0]
[1752267707829,3.2079,2973.7,2973.6,40.0]
[1752267709330,4.4379,2973.7,2973.6,40.0]
[1752267710892,5.6679,2973.7,2973.6,40.0]
[1752267712254,6.8979,2973.7,2973.6,40.0]
[1752267712451,7.58769,2973.7,2973.6,40.0]
[1752267712687,1.7291,2973.6,2973.1,6.098]
[1752267712888,1.7291,2973.2,2973.1,16.098]
[1752267713062,2.2016,2973.2,2973.1,16.098]
[1752267713782,3.65176,2973.2,2973.1,15.764]
[1752267714101,2.09066,2973.2,2973.0,0.67844876]
[1752267714269,1.5611,2973.1,2973.0,0.67844876]
[1752267714602,1.7291,2973.0,2972.9,0.002]
[1752267714799,1.7291,2973.0,2971.6,12.51265051]
[1752267714800,2.2016,2973.0,2971.6,0.168]
[1752267714994,0.168,2972.2,2972.1,30.0]
[1752267715310,2.2016,2972.2,2972.1,30.25477396]
[1752267715781,2.2016,2972.2,2972.1,40.25477396]
[1752267716092,2.2016,2972.2,2972.1,40.90728242]
[1752267716699,3.4316,2972.2,2972.1,40.90728242]
[1752267717066,1.398,2972.2,2972.1,53.41993293]
[1752267717265,1.23,2972.2,2972.1,54.3258186]
[1752267717470,1.23,2972.2,2972.1,54.7574186]
[1752267717757,1.22578166,2972.2,2972.1,54.3258186]
[1752267718096,1.22578166,2972.2,2972.1,40.90728242]
[1752267718278,2.45578166,2972.2,2972.1,40.90728242]
[1752267718483,3.09628166,2972.2,2972.1,40.90728242]
[1752267719698,3.85378166,2972.2,2972.1,40.90728242]
[1752267719896,3.68578166,2972.2,2972.1,56.3613186]
[1752267720194,3.68578166,2972.2,2972.1,54.56953293]
[1752267720963,4.91578166,2972.2,2972.1,54.56953293]
[1752267721774,4.91578166,2972.2,2972.1,56.17343293]
[1752267722559,6.14578166,2972.2,2972.1,41.62528242]
[1752267724231,7.37578166,2972.2,2972.1,41.62528242]
[1752267725894,8.60578166,2972.2,2972.1,41.62528242]
[1752267726703,9.07828166,2972.2,2972.1,40.90728242]
[1752267727210,10.30828166,2972.2,2972.1,40.90728242]
[1752267727900,9.83578166,2972.2,2972.1,54.40153293]
[1752267728106,9.83578166,2972.2,2972.1,53.96993293]
[1752267728473,11.06578166,2972.2,2972.1,53.96993293]
[1752267728875,11.06578166,2972.2,2972.1,41.45728242]
[1752267730488,12.29578166,2972.2,2972.1,41.45728242]
[1752267731015,12.29578166,2972.2,2972.1,11.45728242]
[1752267731326,12.29578166,2972.2,2972.1,41.45728242]
[1752267731615,12.29578166,2972.2,2972.1,40.90728242]
[1752267731778,13.99828166,2972.2,2972.1,40.90728242]
[1752267731975,13.52578166,2972.2,2972.1,53.41993293]
[1752267732182,13.52578166,2972.2,2972.1,55.93113293]
[1752267732582,13.52578166,2972.2,2972.1,56.2870186]
[1752267732813,13.52578166,2972.2,2972.1,56.4550186]
[1752267733326,2.44287315,2972.2,2972.1,56.4550186]
[1752267733626,1.23,2973.0,2972.2,42.0796]
[1752267733810,1.23,2973.0,2972.6,10.55]
[1752267734008,1.23,2973.0,2972.9,40.55]
[1752267734489,2.46,2973.0,2972.9,40.55]
[1752267734992,2.46,2973.0,2972.9,58.006]
[1752267735329,2.46,2973.0,2972.9,57.444]
[1752267736225,3.69,2973.0,2972.9,57.444]
[1752267737611,4.92,2973.0,2972.9,57.444]
[1752267738342,4.92,2973.0,2972.9,33.635]
[1752267738343,6.9552,2973.0,2972.9,33.635]
[1752267738505,7.77372,2973.0,2972.9,38.826]
[1752267738919,9.00372,2973.0,2972.9,38.826]
[1752267739133,8.1852,2973.0,2972.9,38.826]
[1752267740402,9.4152,2973.0,2972.9,38.826]
[1752267740745,7.38,2973.0,2972.9,38.826]
[1752267741942,8.61,2973.0,2972.9,38.826]
[1752267742325,8.61,2973.0,2972.9,39.2956]
[1752267742532,8.61,2973.0,2972.9,38.826]
[1752267742737,8.61,2973.0,2972.9,39.2956]
[1752267743146,10.6109,2973.0,2972.9,33.635]
[1752267743361,12.62016119,2973.0,2972.9,38.824]
[1752267743536,11.8409,2973.0,2972.9,38.824]
[1752267745428,13.0709,2973.0,2972.9,38.824]
[1752267746163,11.07,2973.0,2972.9,38.824]
[1752267746364,11.238,2973.0,2972.9,38.824]
[1752267747384,12.468,2973.0,2972.9,38.824]
[1752267748842,13.698,2973.0,2972.9,38.824]
[1752267750080,13.698,2973.0,2972.9,38.823]
[1752267750283,14.928,2973.0,2972.9,38.823]
[1752267751574,16.158,2973.0,2972.9,38.823]
[1752267752297,16.6199,2973.0,2972.9,33.635]
[1752267752602,16.6199,2973.0,2972.9,38.818]
[1752267752905,16.158,2973.0,2972.9,38.818]
[1752267753106,17.388,2973.0,2972.9,38.818]
[1752267754419,18.618,2973.0,2972.9,38.818]
[1752267755829,19.848,2973.0,2972.9,38.818]
[1752267756824,19.68,2973.0,2972.9,39.8376]
[1752267757118,19.68,2973.0,2972.9,39.368]